fUSD/lending_fUSD_20240216
["ID","MTS","AMOUNT","RATE_DAILY","PERIOD"]
[314199391,1708071040928,-200.0,0.00041,7]
[314199392,1708071040937,-151.0,0.00041,7]
[314199393,1708071040946,-151.0,0.00041,7]
[314199394,1708071040955,-151.0,0.00041,7]
[314199395,1708071040965,-2000.0,0.00041,120]
[314199396,1708071040974,-2000.0,0.00041,7]
[314199397,1708071040984,-151.0,0.00041,7]
[314199398,1708071040993,-200000.0,0.00041,5]
[314199399,1708071041002,-2491.85939437,0.00041,2]
[314199400,1708071041011,-150.0,0.0004101,2]
[314199401,1708071041020,-200.0,0.00041036,15]
[314199402,1708071041029,-800.0,0.00041036,15]
[314199403,1708071041039,-200.0,0.00041036,20]
[314199404,1708071041048,-166.66666668,0.00041073,30]
[314199405,1708071041057,-610.62,0.00041084,2]
[314199406,1708071041066,-628.96,0.00041084,2]
[314199407,1708071041074,-225.58747524,0.00041085,2]
[314199408,1708071041083,-23039.6835898,0.00041092,4]
[314199409,1708071041093,-103733.69710987,0.00041094,2]
[314199410,1708071041102,-150.01,0.00041094,2]
[314199411,1708071041111,-3316.80182207,0.00041094,2]
[314199412,1708071041120,-151.0,0.00041094,7]
[314199413,1708071041130,-235.2453374,0.00041095,30]
[314199414,1708071041139,-156.717472,0.00041095,7]
[314199415,1708071041148,-754.64,0.00041095,30]
[314199416,1708071041158,-500.0,0.00041095,30]
[314199417,1708071041167,-510.99687466,0.00041095,30]
[314199418,1708071041176,-513.7465354,0.00041095,30]
[314199419,1708071041186,-500.0,0.00041095,30]
[314199420,1708071041196,-525.28226727,0.00041095,30]
[314199421,1708071041208,-318.26508302,0.00041095,2]
[314199422,1708071041217,-500.0,0.00041095,30]
[314199423,1708071041226,-501.40107327,0.00041095,30]
[314199424,1708071041235,-502.06518549,0.00041095,30]
[314199425,1708071041245,-500.0,0.00041095,30]
[314199426,1708071041254,-500.0,0.00041095,30]
[314199427,1708071041263,-500.0,0.00041095,30]
[314199428,1708071041273,-500.0,0.00041095,30]
[314199429,1708071041284,-500.0,0.00041095,30]
[314199430,1708071041293,-500.0,0.00041095,30]
[314199431,1708071041302,-500.0,0.00041095,30]
[314199432,1708071041311,-200.0,0.00041095,7]
[314199433,1708071041320,-500.0,0.00041095,30]
[314199434,1708071041330,-500.0,0.00041095,30]
[314199435,1708071041340,-516.72699043,0.00041095,30]
[314199436,1708071041350,-500.0,0.00041095,30]
[314199437,1708071041360,-500.0,0.00041095,30]
[314199438,1708071041370,-500.0,0.00041095,30]
[314199439,1708071041379,-500.0,0.00041095,30]
[314199440,1708071041388,-500.0,0.00041095,30]
[314199441,1708071041398,-500.0,0.00041095,30]
[314199442,1708071041407,-500.0,0.00041095,30]
[314199443,1708071041416,-500.0,0.00041095,30]
[314199444,1708071041425,-500.0,0.00041095,30]
[314199445,1708071041435,-343.7207004,0.00041095,30]
[314199446,1708071041444,-500.0,0.00041095,30]
[314199447,1708071041453,-500.0,0.00041095,30]
[314199448,1708071041462,-500.0,0.00041095,30]
[314199449,1708071041471,-500.0,0.00041095,30]
[314199450,1708071041480,-622.02,0.00041095,30]
[314199451,1708071041489,-500.0,0.00041095,30]
[314199452,1708071041498,-500.0,0.00041095,30]
[314199453,1708071041507,-569.18,0.00041095,30]
[314199454,1708071041516,-500.0,0.00041095,30]
[314199455,1708071041526,-186.35196757,0.00041095,30]
[314199456,1708071041535,-500.0,0.00041095,30]
[314199457,1708071041544,-464.26943247,0.00041095,30]
[314199458,1708071041553,-500.0,0.00041095,30]
[314199459,1708071041562,-500.0,0.00041095,30]
[314199460,1708071041571,-566.86783174,0.00041095,30]
[314199461,1708071041580,-500.0,0.00041095,30]
[314199462,1708071041589,-363.81211324,0.00041095,30]
[314199463,1708071041599,-500.0,0.00041095,30]
[314199464,1708071041608,-522.63259732,0.00041095,30]
[314199465,1708071041617,-1000.0,0.00041095,2]
[314199466,1708071041627,-895.83,0.00041095,7]
[314199467,1708071041636,-160.0,0.00041095,30]
[314199468,1708071041645,-500.0,0.00041095,30]
[314199469,1708071041654,-547.41,0.00041095,30]
[314199470,1708071041663,-500.0,0.00041095,30]
[314199471,1708071041672,-500.0,0.00041095,30]
[314199472,1708071041681,-563.28,0.00041095,30]
[314199473,1708071041691,-500.0,0.00041095,30]
[314199474,1708071041699,-500.0,0.00041095,30]
[314199475,1708071041708,-500.0,0.00041095,30]
[314199476,1708071041717,-500.0,0.00041095,30]
[314199477,1708071041726,-500.0,0.00041095,30]
[314199478,1708071041735,-500.0,0.00041095,30]
[314199479,1708071041744,-516.19445505,0.00041095,30]
[314199480,1708071041753,-500.0,0.00041095,30]
[314199481,1708071041762,-343.95445378,0.00041095,30]
[314199482,1708071041771,-500.0,0.00041095,30]
[314199483,1708071041781,-500.0,0.00041095,30]
[314199484,1708071041791,-500.0,0.00041095,30]
[314199485,1708071041800,-500.0,0.00041095,30]
[314199486,1708071041809,-518.64764453,0.00041095,30]
[314199487,1708071041818,-500.0,0.00041095,30]
[314199488,1708071041827,-2281.36,0.00041095,30]
[314199489,1708071041838,-500.0,0.00041095,30]
[314199490,1708071041847,-500.0,0.00041095,30]
[314199491,1708071041856,-500.0,0.00041095,30]
[314199492,1708071041865,-500.0,0.00041095,30]
[314199493,1708071041874,-300.0,0.00041095,30]
[314199494,1708071041883,-500.0,0.00041095,30]
[314199495,1708071041892,-500.0,0.00041095,30]
[314199496,1708071041901,-500.0,0.00041095,30]
[314199497,1708071041910,-500.0,0.00041095,30]
[314199498,1708071041919,-500.0,0.00041095,30]
[314199499,1708071041928,-1000.0,0.00041095,7]
[314199500,1708071041937,-500.0,0.00041095,30]
[314199501,1708071041946,-500.0,0.00041095,30]
[314199502,1708071041955,-500.0,0.00041095,30]
[314199503,1708071041964,-500.0,0.00041095,30]
[314199504,1708071041973,-500.0,0.00041095,30]
[314199505,1708071041982,-500.0,0.00041095,30]
[314199506,1708071041991,-500.0,0.00041095,30]
[314199507,1708071042000,-500.0,0.00041095,30]
[314199508,1708071042009,-1906.12,0.00041095,30]
[314199509,1708071042019,-500.0,0.00041095,30]
[314199510,1708071042027,-500.0,0.00041095,30]
[314199511,1708071042036,-500.0,0.00041095,30]
[314199512,1708071042045,-500.0,0.00041095,30]
[314199513,1708071042054,-500.0,0.00041095,30]
[314199514,1708071042063,-580.24825046,0.00041095,30]
[314199515,1708071042072,-500.0,0.00041095,30]
[314199516,1708071042080,-500.0,0.00041095,14]
[314199517,1708071042090,-500.0,0.00041095,30]
[314199518,1708071042099,-500.0,0.00041095,30]
[314199519,1708071042109,-500.0,0.00041095,30]
[314199520,1708071042118,-500.0,0.00041095,30]
[314199521,1708071042127,-500.0,0.00041095,30]
[314199522,1708071042136,-500.0,0.00041095,30]
[314199523,1708071042145,-500.0,0.00041095,30]
[314199524,1708071042154,-500.0,0.00041095,30]
[314199525,1708071042163,-500.0,0.00041095,30]
[314199526,1708071042172,-375.48216933,0.00041095,30]
[314199527,1708071042181,-500.0,0.00041095,30]
[314199528,1708071042190,-500.0,0.00041095,30]
[314199529,1708071042200,-500.0,0.00041095,30]
[314199530,1708071042210,-500.0,0.00041095,30]
[314199531,1708071042219,-500.0,0.00041095,30]
[314199532,1708071042228,-535.93,0.00041095,30]
[314199533,1708071042239,-500.0,0.00041095,30]
[314199534,1708071042248,-500.0,0.00041095,30]
[314199535,1708071042257,-500.0,0.00041095,30]
[314199536,1708071042266,-500.0,0.00041095,30]
[314199537,1708071042276,-500.0,0.00041095,30]
[314199538,1708071042286,-500.0,0.00041095,30]
[314199539,1708071042296,-500.0,0.00041095,30]
[314199540,1708071042305,-500.0,0.00041095,30]
[314199541,1708071042314,-500.0,0.00041095,30]
[314199542,1708071042324,-500.0,0.00041095,30]
[314199543,1708071042333,-500.0,0.00041095,30]
[314199544,1708071042343,-500.0,0.00041095,30]
[314199545,1708071042352,-500.0,0.00041095,30]
[314199546,1708071042361,-500.0,0.00041095,30]
[314199547,1708071042372,-500.0,0.00041095,30]
[314199548,1708071042381,-500.0,0.00041095,30]
[314199549,1708071042390,-500.0,0.00041095,30]
[314199550,1708071042399,-500.0,0.00041095,30]
[314199551,1708071042408,-500.0,0.00041095,30]
[314199552,1708071042417,-500.0,0.00041095,30]
[314199553,1708071042426,-507.09,0.00041095,30]
[314199554,1708071042435,-500.0,0.00041095,30]
[314199555,1708071042445,-504.11121296,0.00041095,5]
[314199556,1708071042454,-500.0,0.00041095,30]
[314199557,1708071042463,-500.0,0.00041095,30]
[314199558,1708071042472,-500.0,0.00041095,30]
[314199559,1708071042481,-600.0,0.00041095,30]
[314199560,1708071042490,-500.0,0.00041095,30]
[314199561,1708071042500,-500.0,0.00041095,30]
[314199562,1708071042509,-666.5,0.00041095,30]
[314199563,1708071042518,-508.47541511,0.00041095,30]
[314199564,1708071042527,-500.0,0.00041095,30]
[314199565,1708071042536,-436.71705126,0.00041095,30]
[314199567,1708071042547,-500.0,0.00041095,30]
[314199568,1708071042556,-500.0,0.00041095,30]
[314199569,1708071042565,-1185.71,0.00041095,7]
[314199570,1708071042574,-500.0,0.00041095,30]
[314199571,1708071042583,-500.0,0.00041095,30]
[314199572,1708071042592,-175.32447494,0.00041095,30]
[314199574,1708071042601,-500.0,0.00041095,30]
[314199575,1708071042611,-500.0,0.00041095,30]
[314199576,1708071042620,-500.0,0.00041095,30]
[314199577,1708071042629,-150.0,0.00041095,7]
[314199578,1708071042638,-500.0,0.00041095,30]
[314199579,1708071042648,-150.0,0.00041095,7]
[314199580,1708071042657,-500.0,0.00041095,2]
[314199581,1708071042667,-150.0,0.00041095,7]
[314199582,1708071042676,-599.15,0.00041095,30]
[314199583,1708071042685,-500.0,0.00041095,30]
[314199585,1708071042694,-500.0,0.00041095,30]
[314199586,1708071042703,-500.0,0.00041095,30]
[314199587,1708071042712,-226.39972563,0.00041095,120]
[314199589,1708071042721,-500.0,0.00041095,30]
[314199591,1708071042730,-500.0,0.00041095,30]
[314199592,1708071042739,-500.0,0.00041095,30]
[314199593,1708071042748,-564.84509818,0.00041095,30]
[314199594,1708071042757,-248.56,0.00041095,30]
[314199596,1708071042767,-500.0,0.00041095,30]
[314199597,1708071042776,-500.0,0.00041095,30]
[314199598,1708071042785,-500.0,0.00041095,30]
[314199599,1708071042794,-310.947,0.00041096,120]
[314199600,1708071042803,-152.46,0.000411,4]
[314199601,1708071042812,-152.46,0.000411,4]
[314199602,1708071042822,-152.46,0.000411,4]
[314199603,1708071042831,-18036.20074901,0.0004111,2]
[314199604,1708071042840,-153.0,0.00041114,7]
[314199605,1708071042850,-150.0,0.00041118,7]
[314199606,1708071042860,-172.282,0.00041146,2]
[314199607,1708071042869,-151.021624,0.00041148,26]
[314199608,1708071042878,-166.66666668,0.00041153,30]
[314199609,1708071042887,-151.021624,0.00041198,31]
[314199610,1708071042896,-251.37530952,0.00041245,15]
[314199611,1708071042914,-967.78,0.00041245,15]
[314199612,1708071042926,-744.98008457,0.00041245,15]
[314199613,1708071042937,-741.27723955,0.00041245,15]
[314199614,1708071042949,-420.8888349,0.00041245,15]
[314199615,1708071042961,-313.89851893,0.00041245,15]
[314199616,1708071042990,-637.26935831,0.00036315,2]
[314199617,1708071043002,-4330.35428494,0.00036315,2]
[314199618,1708071043029,-9420.39008292,0.00036315,2]
[314199619,1708071043072,-508.29467022,0.00036315,2]
[314199620,1708071043090,-567.07389308,0.00036315,2]
[314199621,1708071043102,-1230.5843856,0.00036315,2]
[314199622,1708071043112,-1155.95625746,0.00041245,15]
[314199623,1708071043122,-151.021624,0.00041248,27]
[314199624,1708071043131,-153.0,0.00041251,7]
[314199625,1708071043141,-721.82623237,0.00041255,4]
[314199626,1708071043153,-9278.17376763,0.00041255,4]
[314199627,1708071043162,-150.0,0.00041255,7]
[314199628,1708071043171,-1886.62731925,0.00041263,17]
[314199629,1708071043181,-150.0,0.00041272,2]
[314199630,1708071043191,-610.62,0.00041285,2]
[314199631,1708071043202,-628.96,0.00041286,2]
[314199632,1708071043211,-1245.02714321,0.00041315,2]
[314199633,1708071043221,-1388.3293827,0.00041338,2]
[314199634,1708071043230,-150.0,0.00041344,2]
[314199635,1708071043240,-151.021624,0.00041348,27]
[314199636,1708071043249,-155.41,0.0004135,2]
[314199637,1708071043258,-66985.8119115,0.00041367,2]
[314199638,1708071043267,-151.0,0.00041367,14]
[314199639,1708071043278,-754.64,0.00041369,30]
[314199640,1708071043289,-500.0,0.00041369,30]
[314199641,1708071043299,-525.44971432,0.00041369,30]
[314199642,1708071043310,-200.0,0.00041369,8]
[314199643,1708071043319,-614.48559871,0.00041369,30]
[314199644,1708071043468,-463.17489272,0.00041369,30]
[314199645,1708071043499,-500.0,0.00041369,30]
[314199646,1708071043509,-622.02,0.00041369,30]
[314199647,1708071043519,-359.38,0.00041369,30]
[314199648,1708071043528,-500.0,0.00041369,30]
[314199649,1708071043537,-500.0,0.00041369,30]
[314199650,1708071043546,-210.45,0.00041369,30]
[314199651,1708071043555,-500.0,0.00041369,30]
[314199652,1708071043565,-500.0,0.00041369,30]
[314199653,1708071043575,-895.83,0.00041369,7]
[314199654,1708071043584,-500.0,0.00041369,30]
[314199655,1708071043595,-500.0,0.00041369,30]
[314199656,1708071043604,-480.04,0.00041369,30]
[314199657,1708071043613,-500.0,0.00041369,30]
[314199658,1708071043622,-631.74,0.00041369,30]
[314199659,1708071043631,-500.0,0.00041369,30]
[314199660,1708071043640,-2281.36,0.00041369,30]
[314199661,1708071043650,-500.0,0.00041369,30]
[314199662,1708071043659,-262.49,0.00041369,30]
[314199663,1708071043668,-500.0,0.00041369,30]
[314199664,1708071043677,-500.0,0.00041369,30]
[314199665,1708071043687,-1906.12,0.00041369,30]
[314199666,1708071043696,-500.0,0.00041369,30]
[314199667,1708071043708,-500.0,0.00041369,30]
[314199668,1708071043718,-500.0,0.00041369,30]
[314199669,1708071043727,-500.0,0.00041369,30]
[314199670,1708071043737,-500.0,0.00041369,14]
[314199671,1708071043746,-500.0,0.00041369,30]
[314199672,1708071043755,-500.0,0.00041369,30]
[314199673,1708071043765,-500.0,0.00041369,30]
[314199674,1708071043774,-500.0,0.00041369,30]
[314199675,1708071043783,-606.86,0.00041369,30]
[314199676,1708071043792,-500.0,0.00041369,30]
[314199677,1708071043802,-500.0,0.00041369,30]
[314199678,1708071043811,-500.0,0.00041369,30]
[314199679,1708071043820,-500.0,0.00041369,30]
[314199680,1708071043830,-600.0,0.00041369,30]
[314199681,1708071043840,-666.5,0.00041369,30]
[314199682,1708071043852,-252.78,0.00041369,30]
[314199683,1708071043862,-1185.71,0.00041369,7]
[314199684,1708071043872,-500.0,0.00041369,30]
[314199685,1708071043882,-500.0,0.00041369,30]
[314199686,1708071043890,-500.0,0.00041369,30]
[314199687,1708071043900,-599.15,0.00041369,30]
[314199688,1708071043909,-155.155284,0.0004137,14]
[314199689,1708071043918,-155.0,0.0004137,2]
[314199690,1708071043928,-153.0,0.00041388,7]
[314199691,1708071043937,-150.0,0.00041392,7]
[314199692,1708071043946,-225.0,0.00041395,30]
[314199693,1708071043956,-151.021624,0.00041398,31]
[314199694,1708071043965,-200.0,0.0004141,7]
[314199695,1708071043978,-150.0,0.00041446,2]
[314199696,1708071043988,-151.021624,0.00041448,27]
[314199697,1708071043997,-480.0,0.00041452,2]
[314199698,1708071044007,-150.0,0.00041465,7]
[314199699,1708071044016,-150.0,0.00041465,7]
[314199700,1708071044025,-150.0,0.00041465,7]
[314199701,1708071044035,-631.6425,0.00041482,7]
[314199702,1708071044044,-610.62,0.00041487,2]
[314199703,1708071044053,-628.96,0.00041487,2]
[314199704,1708071044063,-151.021624,0.00041498,31]
[314199705,1708071044073,-4000.0,0.000415,12]
[314199706,1708071044083,-2781.07028338,0.000415,14]
[314199707,1708071044092,-252.89338,0.000415,10]
[314199708,1708071044104,-150.0,0.00041507,2]
[314199709,1708071044115,-150.0,0.00041529,7]
[314199710,1708071044124,-151.0,0.00041542,14]
[314199711,1708071044134,-150.0,0.00041571,30]
[314199712,1708071044143,-242.71793406,0.00041576,15]
[314199713,1708071044152,-150.0,0.0004159,2]
[314199714,1708071044160,-155.41,0.00041622,2]
[314199715,1708071044170,-151.0,0.00041633,14]
[314199717,1708071044180,-150.0,0.00041635,2]
[314199718,1708071044189,-754.64,0.00041643,30]
[314199719,1708071044199,-215.63242292,0.00041643,30]
[314199720,1708071044210,-200.0,0.00041643,9]
[314199721,1708071044219,-500.0,0.00041643,30]
[314199722,1708071044229,-622.02,0.00041643,30]
[314199723,1708071044238,-500.0,0.00041643,30]
[314199724,1708071044248,-529.29,0.00041643,30]
[314199725,1708071044257,-3000.0,0.00041643,120]
[314199726,1708071044267,-150.34598476,0.00041643,30]
[314199727,1708071044277,-500.0,0.00041643,30]
[314199728,1708071044286,-895.83,0.00041643,7]
[314199729,1708071044295,-390.28166068,0.00041643,30]
[314199730,1708071044304,-406.43,0.00041643,30]
[314199731,1708071044314,-500.0,0.00041643,30]
[314199732,1708071044323,-500.0,0.00041643,30]
[314199733,1708071044333,-2281.36,0.00041643,30]
[314199734,1708071044344,-500.0,0.00041643,30]
[314199735,1708071044354,-500.0,0.00041643,30]
[314199736,1708071044363,-1906.12,0.00041643,30]
[314199737,1708071044373,-500.0,0.00041643,30]
[314199738,1708071044382,-500.0,0.00041643,30]
[314199739,1708071044392,-500.0,0.00041643,30]
[314199740,1708071044401,-625.22,0.00041643,30]
[314199741,1708071044411,-600.0,0.00041643,30]
[314199742,1708071044421,-666.5,0.00041643,30]
[314199743,1708071044430,-1185.71,0.00041643,7]
[314199744,1708071044439,-516.29506381,0.00041643,30]
[314199745,1708071044449,-500.0,0.00041643,30]
[314199746,1708071044458,-599.15,0.00041643,30]
[314199747,1708071044468,-227.35324951,0.00041655,2]
[314199748,1708071044478,-150.0,0.00041666,7]
[314199749,1708071044487,-610.62,0.00041688,2]
[314199750,1708071044497,-628.96,0.00041689,2]
[314199751,1708071044506,-104521.44742999,0.000417,17]
[314199752,1708071044637,-31883.56084247,0.000417,17]
[314199753,1708071044649,-11204.60524149,0.000417,17]
[314199754,1708071044661,-1267.80842534,0.000417,17]
[314199755,1708071044673,-998.486475,0.000417,17]
[314199756,1708071044692,-605.25704621,0.000417,17]
[314199757,1708071044704,-2769.43143527,0.000417,17]
[314199758,1708071044720,-1956.47188639,0.000417,17]
[314199759,1708071044732,-2932.8516548,0.000417,17]
[314199760,1708071044744,-2270.29433877,0.000417,17]
[314199761,1708071044756,-17117.60619782,0.000417,17]
[314199762,1708071044767,-1640.56890782,0.000417,17]
[314199763,1708071044779,-549.86666413,0.000417,17]
[314199764,1708071044791,-1300.1326,0.000417,17]
[314199765,1708071044802,-2343.59286115,0.000417,17]
[314199775,1708071045782,-3507.01356162,0.00038418,2]
[314199776,1708071045840,-13186.95311345,0.00038418,2]
[314199777,1708071045851,-150.01,0.00041094,2]
[314199778,1708071045860,-3316.80182207,0.00041094,2]
[314199779,1708071045870,-11487.23506448,0.000417,17]
[314199780,1708071045881,-2814.4,0.000417,17]
[314199781,1708071045897,-47528.1557585,0.000417,17]
[314199782,1708071045906,-3480.0,0.000417,87]
[314199783,1708071045915,-40814.37125856,0.000417,7]
[314199784,1708071045924,-151.0,0.000417,14]
[314199785,1708071045933,-2013.61782795,0.000417,7]
[314199786,1708071045942,-300.0,0.00041723,2]
[314199787,1708071045951,-300.0,0.00041734,2]
[314199788,1708071045960,-3000.0,0.0004178,120]
[314199789,1708071045969,-13559.92026334,0.0004179,3]
[314199790,1708071045978,-266.427005,0.0004179,14]
[314199791,1708071045988,-210.76362861,0.00041795,7]
[314199792,1708071045997,-151.021624,0.00041798,31]
[314199793,1708071046007,-152.46,0.000418,4]
[314199794,1708071046015,-152.46,0.000418,4]
[314199795,1708071046025,-152.46,0.000418,4]
[314199796,1708071046034,-150.0,0.00041803,7]
[314199797,1708071046043,-225.0,0.00041818,30]
[314199798,1708071046052,-150.0,0.00041835,7]
[314199799,1708071046061,-150.0,0.00041835,7]
[314199800,1708071046070,-150.0,0.00041835,7]
[314199801,1708071046079,-71284.19,0.00041876,20]
[314199802,1708071046088,-151.0,0.00041876,14]
[314199803,1708071046098,-9688.48641442,0.00041887,2]
[314199804,1708071046109,-2859.71598182,0.00041887,2]
[314199805,1708071046121,-7627.95743926,0.00041887,2]
[314199814,1708071319886,157.21731547,0.000303,120]
[314199834,1708072231929,-195.77487284,0.00028,2]
[314199835,1708072231939,-155.0,0.00034898,4]
[314199836,1708072231948,-157.22512691,0.00034899,4]
[314199838,1708072232030,-282.38722525,0.00034899,4]
[314199839,1708072232042,-331.62881422,0.00034899,4]
[314199843,1708072232088,-662.81212034,0.00034899,4]
[314199844,1708072232098,-300.0,0.00034899,2]
[314199845,1708072232107,-1350.36674512,0.000349,3]
[314199846,1708072232118,-484.63325488,0.000349,3]
[314199847,1708072232128,-295.22773867,0.00035219,10]
[314199848,1708072232137,-160.27259678,0.00035899,2]
[314199849,1708072232146,-255.9905765,0.00036,4]
[314199850,1708072232155,-287.0,0.00036811,2]
[314199851,1708072232165,-160.27259677,0.00037008,2]
[314199852,1708072232174,-215.67,0.00037088,2]
[314199853,1708072232185,-40.9332364,0.00038116,2]
[314199856,1708072232322,-119.33936037,0.00038116,2]
[314199858,1708072232331,-150.01,0.00038391,2]
[314199860,1708072232340,-2148.6257,0.0003841,2]
[314199862,1708072232349,-153.18815348,0.00038441,37]
[314199864,1708072232360,-515.06184652,0.00038441,37]
[314199867,1708072232369,-250.0,0.00038485,111]
[314199869,1708072232378,-291.92253337,0.00038507,8]
[314199871,1708072232387,-904.0,0.0003851,2]
[314199872,1708072232396,-1181.93125243,0.00038517,8]
[314199873,1708072232405,-223.46517369,0.00038517,8]
[314199874,1708072232415,-150.23,0.00038518,2]
[314199875,1708072232425,-200.0,0.00038518,2]
[314199876,1708072232434,-276.91418233,0.00038527,8]
[314199877,1708072232444,-155.41,0.0003856,2]
[314199878,1708072232453,-730.01,0.00038584,15]
[314199879,1708072232462,-250.0,0.00038678,2]
[314199880,1708072232472,-160.5,0.00038751,2]
[314199882,1708072232481,-150.0,0.000389,2]
[314199884,1708072232491,-495.86,0.00039008,2]
[314199886,1708072232500,-500.0,0.00039066,2]
[314199888,1708072232509,-175.06,0.00039097,2]
[314199889,1708072232518,-160.27259677,0.00039225,2]
[314199890,1708072232527,-442.34123252,0.00039254,2]
[314199891,1708072232542,-825.31876748,0.00039254,2]
[314199892,1708072232551,-155.41,0.0003932,2]
[314199893,1708072232560,-160.0,0.0003935,2]
[314199894,1708072232569,-215.67,0.00039352,2]
[314199895,1708072232578,-264.43,0.0003956,2]
[314199896,1708072232587,-287.0,0.00039615,2]
[314199897,1708072232601,-153.79,0.000398,3]
[314199898,1708072232612,-128.6069547,0.000398,3]
[314199899,1708072232626,-25.1830453,0.000398,3]
[314199900,1708072232638,-153.79,0.000398,3]
[314199901,1708072232649,-153.79,0.000398,3]
[314199902,1708072232659,-153.79,0.000398,3]
[314199903,1708072232668,-153.79,0.000398,3]
[314199904,1708072232678,-153.79,0.000398,3]
[314199905,1708072232688,-153.79,0.000398,3]
[314199906,1708072232697,-105.50399578,0.000398,3]
[314199907,1708072232711,-48.28600422,0.000398,3]
[314199908,1708072232720,-153.79,0.000398,3]
[314199909,1708072232730,-153.79,0.000398,3]
[314199910,1708072232739,-153.79,0.000398,3]
[314199911,1708072232749,-153.79,0.000398,3]
[314199912,1708072232758,-153.79,0.000398,3]
[314199913,1708072232767,-153.79,0.000398,3]
[314199914,1708072232777,-193.23,0.0003995,2]
[314199915,1708072232787,-101.17414638,0.0004,15]
[314199916,1708072232802,-377.37407098,0.0004,15]
[314199917,1708072232814,-368.08825253,0.0004,15]
[314199926,1708072238000,-150.0,0.000389,2]
[314199927,1708072238010,-1784.6,0.0004,15]
[314199928,1708072238029,-3455.96651793,0.0004,15]
[314199929,1708072238041,-5773.08024253,0.0004,15]
[314199930,1708072238051,-801.33,0.00040077,2]
[314199931,1708072238060,-150.23,0.00040162,2]
[314199932,1708072238069,-165.75,0.00040181,2]
[314199933,1708072238078,-160.27259677,0.00040333,2]
[314199934,1708072238087,-153.79,0.000405,4]
[314199935,1708072238096,-153.79,0.000405,4]
[314199936,1708072238105,-153.79,0.000405,4]
[314199937,1708072238114,-153.79,0.000405,4]
[314199938,1708072238124,-153.79,0.000405,4]
[314199939,1708072238133,-153.79,0.000405,4]
[314199940,1708072238142,-60.27522526,0.000405,4]
[314199941,1708072238155,-93.51477474,0.000405,4]
[314199942,1708072238164,-153.79,0.000405,4]
[314199943,1708072238174,-153.79,0.000405,4]
[314199944,1708072238183,-153.79,0.000405,4]
[314199945,1708072238194,-153.79,0.000405,4]
[314199946,1708072238203,-153.79,0.000405,4]
[314199947,1708072238212,-153.79,0.000405,4]
[314199948,1708072238222,-153.79,0.000405,4]
[314199949,1708072238231,-153.79,0.000405,4]
[314199950,1708072238240,-164.67,0.00040517,2]
[314199951,1708072238250,-155.41,0.0004063,2]
[314199952,1708072238259,-894.58957548,0.000407,2]
[314199953,1708072238271,-1402.05982941,0.000407,2]
[314199954,1708072238291,-648.5229323,0.000407,2]
[314199955,1708072238303,-627.74580422,0.000407,2]
[314199956,1708072238315,-574.98736815,0.000407,2]
[314199957,1708072238326,-730.05188774,0.000407,2]
[314199958,1708072238337,-1007.38297438,0.000407,2]
[314199959,1708072238350,-784.20550947,0.000407,2]